bitfinex-derivatives/quotes_BTCF0:USTF0_20250416
["timestamp","ask_amount","ask_price","bid_price","bid_amount"]
[1744810379172,0.1193877,83769.0,83766.0,0.3608]
[1744810379368,0.0317,83768.0,83767.0,0.1193883]
[1744810379771,0.3608,83775.0,83774.0,0.1193783]
[1744810380270,0.0317,83778.0,83777.0,0.119374]
[1744810380462,0.3608,83783.0,83782.0,0.1193669]
[1744810380667,0.36094581,83783.0,83782.0,0.1193669]
[1744810380862,0.119374,83779.0,83778.0,0.1193719]
[1744810381072,0.1193754,83776.0,83775.0,0.0596881]
[1744810381266,0.1193769,83775.0,83774.0,8e-05]
[1744810381463,0.1508769,83775.0,83774.0,8e-05]
[1744810381663,0.2815,83775.0,83765.0,0.000108]
[1744810381874,0.1193954,83762.0,83761.0,0.0001458]
[1744810382074,0.1194011,83758.0,83747.0,0.18161889]
[1744810382370,0.1508968,83761.0,83760.0,0.1193982]
[1744810382766,0.1193997,83759.0,83758.0,0.1790997]
[1744810383165,0.1194011,83758.0,83752.0,0.00017909]
[1744810383375,0.1527011,83758.0,83752.0,0.00017909]
[1744810383770,0.1527011,83758.0,83755.0,0.1194049]
[1744810384162,0.1527011,83758.0,83757.0,0.12453637]
[1744810384362,0.1527011,83758.0,83757.0,0.00521387]
[1744810384873,0.1527011,83758.0,83757.0,0.12461637]
[1744810385063,0.1527011,83758.0,83757.0,0.12553637]
[1744810385463,0.4027011,83758.0,83752.0,0.00017909]
[1744810385665,0.1194153,83748.0,83747.0,0.36074139]
[1744810386470,0.1846153,83748.0,83747.0,0.36074139]
[1744810387177,0.1846153,83748.0,83747.0,0.24132709]
[1744810387378,0.1194182,83746.0,83745.0,0.1195267]
[1744810387576,0.0332,83748.0,83747.0,0.1194168]
[1744810387871,0.00017909,83769.0,83768.0,0.1193868]
[1744810388064,0.11956449,83769.0,83768.0,0.1193868]
[1744810388265,0.03337909,83769.0,83768.0,0.1193868]
[1744810388574,0.03337909,83769.0,83768.0,0.1293868]
[1744810388771,0.00017909,83769.0,83768.0,0.1928868]
[1744810389077,0.0646807,83786.0,83768.0,0.1928868]
[1744810389078,8e-05,83779.0,83777.0,0.119374]
[1744810389274,8e-05,83779.0,83777.0,0.289374]
[1744810389476,8e-05,83779.0,83777.0,0.299374]
[1744810389677,8e-05,83779.0,83777.0,0.36962556]
[1744810391072,8e-05,83779.0,83777.0,0.37262556]
[1744810391270,8e-05,83779.0,83777.0,0.363874]
[1744810391466,8e-05,83779.0,83777.0,0.353874]
[1744810391772,8e-05,83779.0,83778.0,0.1193726]
[1744810391967,8e-05,83779.0,83778.0,0.3612726]
[1744810392176,0.00010801,83785.0,83784.0,0.119364]
[1744810392372,0.00014581,83790.0,83789.0,0.1193569]
[1744810394378,0.00014581,83790.0,83789.0,0.1203569]
[1744810394682,0.00014581,83790.0,83789.0,0.1303569]
[1744810395478,0.00026573,83794.0,83793.0,0.1193512]
[1744810395678,0.0911516,83827.0,83794.0,0.0596749]
[1744810395884,0.1193285,83809.0,83797.0,0.1193455]
[1744810396182,0.1193331,83806.0,83797.0,0.1393455]
[1744810396686,0.0653,83805.0,83797.0,0.1393455]
[1744810396981,0.0653,83805.0,83797.0,0.5001455]
[1744810397170,0.0653,83805.0,83797.0,0.1393455]
[1744810397371,0.0653,83805.0,83797.0,0.5001455]
[1744810397576,0.0327,83805.0,83797.0,0.1393455]
[1744810397774,1e-08,83800.0,83799.0,0.2386847]
[1744810397970,0.005,83812.0,83811.0,0.1193256]
[1744810398579,0.00508,83812.0,83811.0,0.1193256]
[1744810398975,0.0327,83820.0,83814.0,0.0596603]
[1744810399172,0.15099306,83828.0,83814.0,0.0596603]
[1744810399173,0.15099306,83828.0,83819.0,0.3608]
[1744810399383,0.005,83838.0,83819.0,0.3608]
[1744810399384,0.005,83838.0,83831.0,0.0596483]
[1744810399692,0.005,83838.0,83837.0,0.4800886]
[1744810399875,0.005,83838.0,83837.0,0.6400886]
[1744810400071,0.0382,83850.0,83837.0,0.5208]
[1744810400276,0.23897548,83868.0,83860.0,0.1192559]
[1744810400577,0.20918354,83861.0,83836.0,0.3608]
[1744810400771,0.1192775,83846.0,83845.0,0.1192757]
[1744810400981,0.11928,83843.0,83842.0,0.178921]
[1744810401182,0.11928,83843.0,83842.0,0.188921]
[1744810401382,0.11928,83843.0,83842.0,0.178921]
[1744810401578,0.1192815,83842.0,83841.0,0.00017897]
[1744810401780,0.1789187,83844.0,83843.0,0.1192786]
[1744810401975,0.11942729,83842.0,83841.0,0.00017897]
[1744810402177,0.00014579,83842.0,83841.0,0.11946107]
[1744810402880,0.00014579,83842.0,83841.0,0.11946187]
[1744810403078,0.00022579,83842.0,83841.0,0.11946187]
[1744810403278,0.04032579,83842.0,83841.0,0.11946187]
[1744810403474,0.04032579,83842.0,83841.0,0.15816187]
[1744810403875,0.04132579,83842.0,83841.0,0.15816187]
[1744810404083,0.04124579,83842.0,83841.0,0.15816187]
[1744810404373,0.04124579,83842.0,83841.0,0.00017897]
[1744810404374,0.04132579,83842.0,83841.0,0.00017897]
[1744810404573,0.15960729,83842.0,83841.0,0.00017897]
[1744810404781,0.04032579,83842.0,83841.0,0.11946187]
[1744810404973,0.04024579,83842.0,83841.0,0.11946187]
[1744810405375,0.15960729,83842.0,83841.0,0.11946187]
[1744810405573,0.19722729,83842.0,83841.0,0.11946187]
[1744810405772,0.04032579,83842.0,83841.0,0.11946187]
[1744810405976,0.00014579,83842.0,83841.0,0.11946187]
[1744810406178,0.0377,83861.0,83846.0,0.0596376]
[1744810406481,0.0395,83860.0,83857.0,0.1192588]
[1744810406686,0.3608,83859.0,83858.0,0.1192587]
[1744810406877,0.0377,83859.0,83858.0,0.1192587]
[1744810407281,0.03958,83859.0,83858.0,0.2192587]
[1744810407586,8e-05,83859.0,83858.0,0.2980587]
[1744810407989,0.001,83861.0,83860.0,0.1192559]
[1744810408282,0.00010801,83872.0,83863.0,0.1192516]
[1744810408484,0.0414,83879.0,83863.0,0.5008]
[1744810408690,0.00010801,83879.0,83878.0,0.1192303]
[1744810408989,0.1192281,83880.0,83879.0,0.1192288]
[1744810409183,0.4608,83900.0,83879.0,0.2]
[1744810409383,0.1,83900.0,83899.0,0.1192004]
[1744810409780,0.1192227,83884.0,83883.0,0.1192232]
[1744810409979,0.0596057,83892.0,83891.0,0.00017887]
[1744810410181,0.1192331,83877.0,83874.0,0.0398]
[1744810410384,0.0596068,83890.0,83873.0,0.3608]
[1744810410577,0.0596068,83890.0,83875.0,0.1192345]
[1744810410578,0.04,83876.0,83875.0,0.1192345]
[1744810410783,0.1192366,83874.0,83873.0,0.1192374]
[1744810410980,0.1192441,83869.0,83865.0,0.1192485]
[1744810411279,0.04,83873.0,83863.0,0.3608]
[1744810411479,0.04,83868.0,83867.0,0.1192459]
[1744810412182,0.1592445,83868.0,83867.0,0.1192459]
[1744810412680,0.04,83868.0,83867.0,0.1192459]
[1744810413085,0.04008,83868.0,83867.0,0.1192459]
[1744810413283,0.07808,83868.0,83867.0,0.1192459]
[1744810413678,0.07808,83868.0,83867.0,0.1202459]
[1744810415385,0.5581245,83868.0,83867.0,0.1202459]
[1744810415586,0.1973245,83868.0,83867.0,0.1202459]
[1744810415787,0.119253,83862.0,83859.0,0.00017887]
[1744810416291,0.1192559,83860.0,83859.0,0.00017887]
[1744810416586,0.1192672,83852.0,83851.0,0.1192677]
[1744810416988,0.0596318,83855.0,83852.0,0.1192672]
[1744810416989,0.1982658,83853.0,83852.0,0.1192672]
[1744810417294,0.1982658,83853.0,83850.0,0.0596343]
[1744810417295,0.1192786,83844.0,83843.0,0.3608]
[1744810417492,0.1192871,83838.0,83837.0,1.6906486]
[1744810417683,0.3608,83848.0,83840.0,0.0596418]
[1744810417883,0.0596365,83848.0,83847.0,0.1192743]
[1744810418089,0.00017887,83852.0,83851.0,0.1192687]
[1744810418586,0.00025887,83852.0,83851.0,0.1192687]
[1744810420290,0.11952607,83852.0,83851.0,0.1202687]
[1744810420491,0.11952607,83852.0,83851.0,0.001]
[1744810421089,0.00025887,83852.0,83851.0,0.1202687]
[1744810421391,0.00017887,83852.0,83851.0,0.2202687]
[1744810421600,0.00025887,83852.0,83851.0,0.3016687]
[1744810422995,0.00025887,83852.0,83851.0,0.001]
[1744810423189,0.11952607,83852.0,83851.0,0.001]
[1744810424399,0.11929,83836.0,83835.0,0.00530796]
[1744810424587,0.48009,83836.0,83835.0,0.00530796]
[1744810424787,0.1192851,83840.0,83839.0,0.0596425]
[1744810425097,0.1192778,83847.0,83846.0,0.1192739]
[1744810425396,0.119288,83840.0,83839.0,0.1789234]
[1744810425698,0.11929,83836.0,83835.0,0.12459886]
[1744810426197,0.1789321,83838.0,83837.0,0.1192886]
[1744810426388,0.0596442,83838.0,83837.0,0.1192886]
[1744810426699,0.0596422,83840.0,83839.0,0.1192857]
[1744810427091,0.00017887,83852.0,83837.0,0.4204436]
[1744810427286,0.00017887,83852.0,83850.0,0.1192701]
[1744810427591,0.1585487,83851.0,83850.0,0.1192701]
[1744810428198,0.1192729,83848.0,83847.0,0.0596368]
[1744810428499,0.1192829,83843.0,83842.0,0.1192762]
[1744810428698,0.1192829,83843.0,83837.0,0.424444]
[1744810428699,0.1192857,83839.0,83838.0,0.0596429]
[1744810428900,0.40008,83851.0,83844.0,0.059639]
[1744810429099,8e-05,83851.0,83850.0,0.4800701]
[1744810429300,0.00019684,83860.0,83851.0,0.1192687]
[1744810429597,0.0596205,83871.0,83857.0,0.0596295]
[1744810429790,0.1192514,83867.0,83866.0,0.1788675]
[1744810430197,0.119253,83862.0,83861.0,0.4800544]
[1744810430399,0.119253,83862.0,83861.0,0.3608]
[1744810430597,0.1788768,83864.0,83863.0,0.1192516]
[1744810430999,0.0596258,83863.0,83856.0,0.0596303]
[1744810431194,0.1192601,83857.0,83856.0,0.0596303]
[1744810431402,0.1192644,83854.0,83853.0,0.00017887]
[1744810432999,0.1192644,83854.0,83841.0,0.24125989]
[1744810433000,0.1192815,83842.0,83841.0,0.18161889]
[1744810433207,0.4800815,83842.0,83841.0,0.30090179]
[1744810433402,0.4800815,83842.0,83841.0,0.18161889]
[1744810433594,0.1192815,83842.0,83841.0,0.18161889]
[1744810433902,0.2114815,83842.0,83841.0,0.18161889]
[1744810434298,0.2114815,83842.0,83841.0,0.18461889]
[1744810435804,0.2114815,83842.0,83841.0,0.30390179]
[1744810436000,0.2114815,83842.0,83841.0,0.18461889]
[1744810436302,0.2114815,83842.0,83841.0,0.1222829]
[1744810436604,0.09228,83842.0,83841.0,0.1222829]
[1744810436808,0.04648,83842.0,83841.0,0.1222829]
[1744810436997,0.1656815,83842.0,83841.0,0.1222829]
[1744810437397,0.0464,83842.0,83841.0,0.1222829]
[1744810437592,0.00017887,83850.0,83849.0,0.1192715]
[1744810437801,0.11955698,83850.0,83849.0,0.1192715]
[1744810438102,0.11944897,83850.0,83849.0,0.1666715]
[1744810438308,0.11952897,83850.0,83849.0,0.1666715]
[1744810438602,0.00025887,83850.0,83849.0,0.1666715]
[1744810438803,0.00025887,83850.0,83849.0,0.2156715]
[1744810439003,0.00017887,83850.0,83849.0,0.2156715]
[1744810439206,0.00025887,83850.0,83849.0,0.5764715]
[1744810439497,0.00017887,83850.0,83849.0,0.5864715]
[1744810439698,0.00025887,83850.0,83849.0,0.5964715]
[1744810439898,0.00017887,83850.0,83849.0,0.5964715]
[1744810440402,0.0596169,83876.0,83849.0,0.7272]
[1744810440600,0.0483,83879.0,83878.0,0.1192303]
[1744810440801,0.00010801,83869.0,83857.0,0.3608]
[1744810440997,0.0596265,83862.0,83861.0,0.119253]
[1744810441398,0.1069265,83862.0,83861.0,0.119253]
[1744810441597,0.1788851,83861.0,83860.0,0.119255]
[1744810442097,0.2261851,83861.0,83860.0,0.119255]
[1744810442408,0.1192644,83855.0,83854.0,0.1192618]
[1744810442603,0.1192644,83854.0,83853.0,0.00017887]
[1744810442806,0.1192644,83854.0,83853.0,0.11944467]
[1744810443198,0.1665644,83854.0,83853.0,0.11944467]
[1744810443394,0.2124644,83854.0,83853.0,0.11944467]
[1744810443608,0.1192644,83854.0,83853.0,0.05981157]
[1744810444108,0.0473,83855.0,83854.0,0.1192644]
[1744810444306,0.166563,83855.0,83854.0,0.1192644]
[1744810444504,0.0473,83855.0,83854.0,0.1192644]
[1744810444715,0.1192644,83855.0,83853.0,0.00017887]
[1744810444913,0.4800644,83854.0,83853.0,0.00017887]
[1744810445112,0.11929,83836.0,83828.0,0.30216533]
[1744810445410,0.1789319,83838.0,83837.0,0.1192886]
[1744810445703,0.11929,83836.0,83835.0,0.24669679]
[1744810446501,0.21209,83836.0,83835.0,0.24669679]
[1744810447106,0.57289,83836.0,83835.0,0.24669679]
[1744810447506,0.82289,83836.0,83835.0,0.00512909]
[1744810447911,0.1193014,83828.0,83827.0,0.00017887]
[1744810448206,0.1193014,83828.0,83827.0,0.11948167]
[1744810448610,0.1193014,83828.0,83789.0,0.01037831]
[1744810448611,0.119327,83811.0,83807.0,0.3608]
[1744810448911,0.167627,83810.0,83809.0,0.12445908]
[1744810449310,0.3608,83818.0,83817.0,0.119317]
[1744810450199,0.0459,83819.0,83818.0,0.1193156]
[1744810450402,0.1660124,83821.0,83820.0,0.1193128]
[1744810450600,0.0467,83821.0,83820.0,0.1193128]
[1744810450802,0.0596454,83836.0,83825.0,0.1193056]
[1744810451007,0.0479,83827.0,83825.0,0.1193056]
[1744810451412,0.11948318,83826.0,83825.0,0.1193056]
[1744810451613,0.00017898,83826.0,83825.0,0.1193056]
[1744810451814,0.11948318,83826.0,83825.0,0.1193056]
[1744810452013,0.12113558,83826.0,83825.0,0.1193056]
[1744810452224,0.12313558,83826.0,83825.0,0.1193056]
[1744810452717,0.12313558,83826.0,83825.0,0.4801056]
[1744810452919,0.12313558,83826.0,83825.0,0.5263056]
[1744810453515,0.12313558,83826.0,83825.0,0.5737056]
[1744810453719,0.12313558,83826.0,83825.0,0.5937056]
[1744810454312,0.12113558,83826.0,83825.0,0.5937056]
[1744810454512,0.12113558,83826.0,83825.0,0.5947056]
[1744810455013,0.12113558,83826.0,83825.0,0.2139056]
[1744810455208,0.24043978,83826.0,83825.0,0.2149056]
[1744810455719,0.60123978,83826.0,83825.0,0.002]
[1744810456019,0.1789711,83822.0,83821.0,0.1193068]
[1744810456218,0.0596539,83824.0,83818.0,0.1193155]
[1744810456417,0.1193156,83819.0,83818.0,0.1789731]
[1744810456625,0.1193156,83819.0,83818.0,0.2232731]
[1744810457118,0.0462,83823.0,83818.0,0.0443]
[1744810457322,0.0462,83823.0,83822.0,0.1193099]
[1744810457519,0.1655085,83823.0,83822.0,0.1193099]
[1744810457912,0.0596533,83825.0,83824.0,0.1193071]
[1744810458920,0.00017898,83826.0,83825.0,0.1193056]
[1744810459113,0.11948318,83826.0,83825.0,0.1193056]
[1744810459310,0.11948318,83826.0,83825.0,0.0524]
[1744810459511,0.11948318,83826.0,83825.0,0.1717056]
[1744810459725,0.00017898,83826.0,83825.0,0.1717056]
[1744810460019,0.11948318,83826.0,83825.0,0.1717056]
[1744810460715,0.00017898,83826.0,83825.0,0.2205056]
[1744810461321,0.3608,83847.0,83842.0,0.1192815]
[1744810461521,0.1789186,83846.0,83845.0,0.1789144]
[1744810461715,0.1789236,83842.0,83841.0,0.1789208]
[1744810462019,0.1789236,83842.0,83841.0,0.1012]
[1744810462226,0.2264236,83842.0,83841.0,0.1012]
[1744810462929,0.2264236,83842.0,83833.0,0.00017898]
[1744810462930,0.1192928,83834.0,83833.0,0.00017898]
[1744810463422,0.1705928,83834.0,83833.0,0.00017898]
[1744810463625,0.2197928,83834.0,83833.0,0.11947328]
[1744810463817,0.2197928,83834.0,83833.0,0.00017898]
[1744810464524,0.1193158,83821.0,83820.0,0.1789662]
[1744810464731,0.3608,83827.0,83818.0,0.3608]
[1744810464917,0.4801028,83827.0,83826.0,0.1193042]
[1744810465225,0.1193113,83821.0,83820.0,0.1789653]
[1744810465624,0.1193113,83821.0,83820.0,0.2289653]
[1744810465825,0.0596528,83825.0,83824.0,0.1193071]
[1744810466022,0.1611528,83825.0,83824.0,0.1193071]
[1744810466227,0.0523,83825.0,83824.0,0.1681071]
[1744810466526,0.00017898,83829.0,83824.0,0.1681071]
[1744810466527,0.11947898,83829.0,83828.0,0.1193014]
[1744810466720,0.00017898,83829.0,83828.0,0.099]
[1744810466916,0.1193028,83827.0,83826.0,0.001]
[1744810467430,0.1716028,83827.0,83826.0,0.001]
[1744810467623,0.00017898,83829.0,83828.0,0.1193014]
[1744810468017,0.00017898,83829.0,83828.0,0.2183014]
[1744810468423,0.11947898,83829.0,83828.0,0.2183014]
[1744810468623,0.0596521,83826.0,83824.0,0.002]
[1744810468924,0.1716056,83825.0,83824.0,0.1193071]
[1744810469128,0.2196056,83825.0,83824.0,0.1193071]
[1744810469331,0.00017898,83829.0,83828.0,0.1193014]
[1744810469631,0.00017898,83829.0,83828.0,0.1706014]
[1744810469830,0.04817898,83829.0,83828.0,0.2189014]
[1744810470126,0.00017898,83829.0,83828.0,0.3289014]
[1744810470425,0.05973861,83857.0,83841.0,0.0596414]
[1744810470426,0.00010801,83857.0,83841.0,0.0596414]
[1744810470625,0.048,83856.0,83851.0,0.4800687]
[1744810471019,0.1210366,83852.0,83851.0,0.5796687]
[1744810471230,0.1209566,83852.0,83851.0,0.5796687]
[1744810472024,0.1209566,83852.0,83851.0,0.6096687]
[1744810472327,0.1210366,83852.0,83851.0,0.6116687]
[1744810472527,0.1209566,83852.0,83851.0,0.6116687]
[1744810472721,0.1210366,83852.0,83851.0,0.6116687]
[1744810473119,0.1210366,83852.0,83851.0,0.6126687]
[1744810473836,0.00010801,83859.0,83858.0,0.1192587]
[1744810474032,0.00017898,83860.0,83859.0,0.1192573]
[1744810474525,0.00017898,83860.0,83859.0,0.2210573]
[1744810475123,0.00025898,83860.0,83859.0,0.2210573]
[1744810475319,0.00025898,83860.0,83859.0,0.3110573]
[1744810475517,0.00017898,83860.0,83859.0,0.3110573]
[1744810475723,0.00025898,83860.0,83859.0,0.3220573]
[1744810479727,0.00025898,83860.0,83859.0,0.3120573]
[1744810482224,0.00025898,83860.0,83859.0,0.3220573]
[1744810484629,0.00025898,83860.0,83859.0,0.3120573]
[1744810485027,0.00025898,83860.0,83859.0,0.5026]
[1744810485226,0.00010801,83869.0,83859.0,0.7908]
[1744810485435,0.0509,83878.0,83877.0,0.1192317]
[1744810485623,0.0509,83878.0,83877.0,0.4800317]
[1744810486145,0.09878,83878.0,83877.0,0.5329317]
[1744810486336,0.1192331,83877.0,83875.0,0.3608]
[1744810486632,8e-05,83878.0,83877.0,0.1192317]
[1744810487335,8e-05,83878.0,83877.0,0.2164317]
[1744810487534,8e-05,83878.0,83877.0,0.2464317]
[1744810487931,0.0596124,83882.0,83881.0,0.119226]
[1744810489439,0.00010801,83884.0,83883.0,0.1192232]
[1744810489627,0.00010801,83884.0,83883.0,0.5100232]
[1744810489828,0.00010801,83884.0,83883.0,0.6134232]
[1744810490440,0.00017792,83886.0,83885.0,0.1192203]
[1744810490640,0.00017792,83886.0,83885.0,0.2292203]
[1744810490829,0.00017792,83886.0,83885.0,0.3321203]
[1744810491235,0.00017792,83886.0,83885.0,0.3421203]
[1744810491838,0.00117792,83886.0,83885.0,0.3421203]
[1744810493544,0.12039682,83886.0,83885.0,0.01]
[1744810493737,0.06086732,83886.0,83885.0,0.1492203]
[1744810493938,0.00125792,83886.0,83885.0,0.6200203]
[1744810494133,0.10026573,83900.0,83897.0,0.1192033]
[1744810494338,0.10026573,83900.0,83899.0,0.1192004]
[1744810494541,0.1,83900.0,83899.0,0.2792004]
[1744810494845,0.10008,83900.0,83899.0,0.2792004]
[1744810495346,0.00010801,83910.0,83909.0,0.1191862]
[1744810495540,0.09082443,83913.0,83912.0,0.119182]
[1744810495934,0.09090443,83913.0,83912.0,0.119182]
[1744810496443,0.09082443,83913.0,83912.0,0.639982]
[1744810496648,0.1272766,83924.0,83917.0,0.059587]
[1744810496848,0.00010801,83922.0,83921.0,0.1191692]
[1744810497145,0.1272766,83924.0,83923.0,0.1072763]
[1744810497334,0.1272766,83924.0,83923.0,0.6180763]
[1744810498040,0.1272766,83924.0,83923.0,0.8680763]
[1744810498241,0.005,83942.0,83941.0,0.1191408]
[1744810498438,0.16837074,83943.0,83942.0,0.1191394]
[1744810498643,0.10140348,83949.0,83948.0,0.1191308]
[1744810498843,0.10140348,83949.0,83948.0,0.6899308]
[1744810499149,0.10140348,83949.0,83948.0,0.9399308]
[1744810499840,0.10148348,83949.0,83948.0,0.6899308]
[1744810500036,0.05981343,83973.0,83948.0,0.6899308]
[1744810500037,0.005,83968.0,83967.0,0.1191039]
[1744810500250,0.005,83968.0,83967.0,0.3608]
[1744810500436,0.0595566,83961.0,83959.0,0.00017864]
[1744810500747,8e-05,83961.0,83960.0,0.0595569]
[1744810500934,8e-05,83961.0,83959.0,0.00017864]
[1744810501135,0.1191138,83960.0,83959.0,0.00017864]
[1744810501341,8e-05,83961.0,83959.0,0.00017864]
[1744810501638,8e-05,83961.0,83936.0,0.3608]
[1744810501639,0.119132,83948.0,83946.0,0.3608]
[1744810501835,0.0529,83947.0,83946.0,0.4799337]
[1744810502044,0.1191233,83954.0,83951.0,0.0595628]
[1744810502242,0.0529,83953.0,83946.0,0.3608]
[1744810502450,0.1191323,83947.0,83946.0,0.3608]
[1744810502644,0.0529,83953.0,83946.0,0.3608]
[1744810502844,0.0529,83953.0,83952.0,0.1191252]
[1744810503049,0.05298,83953.0,83952.0,0.1191252]
[1744810503250,0.0595626,83952.0,83946.0,0.3608]
[1744810503545,0.0595626,83952.0,83951.0,0.1191266]
[1744810503747,0.1191284,83950.0,83949.0,0.1191294]
[1744810504048,8e-05,83952.0,83939.0,0.3608]
[1744810504249,0.1191394,83942.0,83941.0,0.02017864]
[1744810504449,0.3608,83942.0,83924.0,0.3608]
[1744810504641,8e-05,83952.0,83940.0,0.3608]
[1744810504842,8e-05,83952.0,83940.0,0.24181816]
[1744810505042,0.0596428,83952.0,83942.0,0.0595697]
[1744810505242,8e-05,83952.0,83940.0,0.24181816]
[1744810505438,0.119133,83947.0,83940.0,0.01]
[1744810505640,8e-05,83952.0,83945.0,0.1191351]
[1744810505948,0.0508,83955.0,83954.0,0.1191223]
[1744810506150,0.00017789,83958.0,83957.0,0.1191181]
[1744810506358,0.00017789,83958.0,83957.0,0.2291181]
[1744810506652,0.00010801,83966.0,83957.0,0.2291181]
[1744810506653,1e-08,83966.0,83965.0,0.1191067]
[1744810506851,0.1,84000.0,83978.0,0.059544]
[1744810507146,0.0508,83999.0,83993.0,0.119067]
[1744810507451,0.00508,83994.0,83993.0,0.669867]
[1744810508146,0.00508,83994.0,83993.0,0.5508]
[1744810508449,0.00508,83994.0,83993.0,0.579867]
[1744810508850,0.1241456,83994.0,83993.0,0.1]
[1744810509145,0.1241456,83994.0,83985.0,0.00017864]
[1744810509146,0.00508,83994.0,83985.0,0.00017864]
[1744810509348,0.00608,83994.0,83990.0,0.1190699]
[1744810509551,0.00608,83994.0,83985.0,0.11925694]
[1744810509756,0.00608,83994.0,83975.0,0.3608]
[1744810510050,0.059541,83983.0,83975.0,0.3608]
[1744810510249,0.0595379,83987.0,83959.0,0.059557]
[1744810510449,0.0595503,83970.0,83957.0,0.3608]
[1744810510653,0.0595542,83964.0,83957.0,0.3708]
[1744810510851,0.1191294,83949.0,83948.0,0.3608]
[1744810511352,0.1191128,83961.0,83948.0,0.09]
[1744810511547,0.1191142,83960.0,83954.0,0.0595605]
[1744810511749,0.3608,83963.0,83952.0,0.3608]
[1744810511942,0.0596371,83960.0,83955.0,0.1191209]
[1744810512144,0.1191167,83958.0,83957.0,0.1191181]
[1744810512342,0.1191167,83958.0,83949.0,0.4113]
[1744810512343,0.059559,83958.0,83949.0,0.4113]
[1744810513046,0.059559,83958.0,83957.0,0.1191159]
[1744810513250,8e-05,83960.0,83959.0,0.1191152]
[1744810513450,0.1191938,83960.0,83959.0,0.1191152]
[1744810513652,0.1191181,83957.0,83956.0,0.1033]
[1744810513848,0.0595613,83954.0,83953.0,0.1191237]
[1744810514052,0.1191214,83955.0,83954.0,0.1191213]
[1744810514248,8e-05,83960.0,83949.0,0.3608]
[1744810514556,0.1191394,83942.0,83940.0,0.00196542]
[1744810514753,0.1191352,83945.0,83943.0,0.0595688]
[1744810514955,0.1191309,83948.0,83947.0,0.1191302]
[1744810515147,0.1191352,83945.0,83944.0,0.1191358]
[1744810515347,0.1191325,83948.0,83947.0,0.1191308]
[1744810515547,0.119132,83949.0,83948.0,0.1191294]
[1744810515943,0.1191379,83943.0,83942.0,0.0515]
[1744810516152,0.1191383,83943.0,83942.0,0.1191385]
[1744810516457,0.00017864,83950.0,83949.0,0.1191294]
[1744810516648,0.00017864,83950.0,83949.0,0.4799294]
[1744810516955,0.11930664,83950.0,83949.0,0.4799294]
[1744810517156,0.1191323,83948.0,83947.0,0.1191312]
[1744810518047,0.001,83949.0,83948.0,0.1191308]
[1744810518245,0.001,83949.0,83948.0,0.4799308]
[1744810518449,0.3608,83986.0,83948.0,0.5208]
[1744810518650,0.0513,83986.0,83970.0,0.1190996]
[1744810518844,1e-08,83971.0,83970.0,0.2790996]
[1744810519051,0.005,83994.0,83993.0,0.119067]
[1744810519246,0.1240656,83994.0,83993.0,0.119067]
[1744810519857,0.1241456,83994.0,83993.0,0.119067]
[1744810520156,0.00508,83994.0,83993.0,0.119067]
[1744810520546,0.005,83994.0,83993.0,0.489867]
[1744810520746,0.00508,83994.0,83993.0,0.489867]
[1744810520951,0.005,83994.0,83993.0,0.489867]
[1744810521149,0.00508,83994.0,83993.0,0.489867]
[1744810521554,0.005,83994.0,83993.0,0.489867]
[1744810521758,0.00508,83994.0,83993.0,0.489867]
[1744810522453,0.1241456,83994.0,83993.0,0.3708]
[1744810522659,0.1241456,83994.0,83993.0,0.3608]
[1744810523258,0.1190769,83986.0,83977.0,0.3608]
[1744810524359,0.1190883,83978.0,83977.0,0.3608]
[1744810524553,0.0595418,83982.0,83978.0,0.0595441]
[1744810524751,0.1190883,83978.0,83977.0,0.3608]
[1744810525256,0.2207883,83978.0,83977.0,0.3608]
[1744810525469,0.1191096,83963.0,83962.0,0.1191097]
[1744810525650,0.059554,83964.0,83957.0,0.2415677]
[1744810525855,0.3608,83959.0,83958.0,0.1191167]
[1744810526055,0.1191167,83958.0,83957.0,0.2415677]
[1744810526251,0.1002,83958.0,83957.0,0.3606858]
[1744810526457,0.2193167,83958.0,83957.0,0.3606858]
[1744810526760,0.2193167,83958.0,83957.0,0.2415677]
[1744810527352,0.1191266,83951.0,83943.0,0.3625984]
[1744810527561,0.4799266,83951.0,83943.0,0.3625984]
[1744810527951,0.4799266,83951.0,83949.0,0.1191292]
[1744810528149,0.4799266,83951.0,83950.0,0.42129333]
[1744810528355,0.5309266,83951.0,83950.0,0.30216533]
[1744810528555,0.5310066,83951.0,83950.0,0.30216533]
[1744810529465,0.178704,83946.0,83945.0,0.1191345]
[1744810529861,0.1191365,83944.0,83943.0,0.0595687]
[1744810530160,0.2227337,83946.0,83945.0,0.1191351]
[1744810530362,0.1036,83946.0,83945.0,0.1191351]
[1744810530754,0.2228137,83946.0,83945.0,0.1191351]
[1744810530956,8e-05,83946.0,83945.0,0.5799351]
[1744810531158,0.00026573,83964.0,83954.0,0.0595605]
[1744810531458,0.00026573,83964.0,83960.0,0.4799138]
[1744810531653,0.00026573,83964.0,83962.0,0.119111]
[1744810531859,0.00026573,83964.0,83962.0,0.129111]
[1744810532065,0.1191067,83965.0,83964.0,0.0595535]
[1744810532268,0.1191233,83954.0,83948.0,0.0595648]
[1744810532562,0.1191131,83961.0,83960.0,0.1191135]
[1744810532859,0.5395454,83963.0,83962.0,0.119111]
[1744810533159,0.36088,83963.0,83962.0,0.119111]
[1744810533553,0.3608,83963.0,83962.0,0.119111]
[1744810533754,0.36088,83963.0,83962.0,0.119111]
[1744810534163,0.1191122,83962.0,83960.0,0.0595562]
[1744810534355,0.0994,83962.0,83961.0,0.1723124]
[1744810534959,0.0994,83962.0,83961.0,0.2235124]
[1744810535259,0.36088,83963.0,83962.0,0.119111]
[1744810535466,0.36088,83963.0,83962.0,0.225611]
[1744810535961,0.3608,83982.0,83972.0,0.1190968]
[1744810536260,0.3608,83975.0,83972.0,0.1190968]
[1744810536763,0.1191067,83965.0,83964.0,0.00017864]
[1744810536952,0.4799067,83965.0,83964.0,0.00017864]
[1744810537666,0.1191408,83941.0,83940.0,0.1055]
[1744810537865,0.4203669,83946.0,83942.0,0.059569]
[1744810538065,0.0528,83945.0,83944.0,0.1191365]
[1744810538457,0.0528,83945.0,83943.0,0.1191372]
[1744810538659,0.119137,83944.0,83943.0,0.1191372]
[1744810538865,0.0528,83945.0,83944.0,0.1191365]
[1744810539062,0.1191408,83941.0,83940.0,0.1055]
[1744810539266,0.1191408,83941.0,83939.0,0.00512274]
[1744810539267,0.1191422,83940.0,83939.0,0.00512274]
[1744810539470,0.1725422,83940.0,83939.0,0.00512274]
[1744810539767,0.1725422,83940.0,83907.0,0.00881269]
[1744810539768,0.1191777,83915.0,83903.0,0.059597]
[1744810539970,0.4799777,83915.0,83911.0,0.1191827]